[Event "African Online-ch O50-Seniors 2021"]
[Site "Online"]
[Date "2021.02.01"]
[Round "6.5"]
[White "Flora, Francisco Jose Estev"]
[Black "Belabbas, Haddouche"]
[Result "0-1"]
[ECO "E62"]
[WhiteElo "1808"]
[BlackElo "1776"]
[Annotator "NA RC"]
[PlyCount "74"]
[EventDate "2021.02.01"]
[EventType "swiss"]
[EventCountry "NET"]
[SourceTitle "playchess.com"]
[Source "ChessBase"]
[SourceQuality "1"]
[TimeControl "1500+10"]

1. d4 {[%emt 0:00:00]} Nf6 {[%emt 0:00:06]} 2. c4 {[%emt 0:00:20]} d6 {[%emt 0:00:07]} 3. Nf3 {[%emt 0:00:22]} g6 {[%emt 0:00:06]} 4. g3 {[%emt 0:00:24]} Bg7 {[%emt 0:00:05]} 5. Bg2 {[%emt 0:00:13]} O-O {[%emt 0:00:09]} 6. O-O {[%emt 0:00:15]} Nc6 {[%emt 0:00:10]} 7. Nc3 {[%emt 0:00:46]} Bg4 {[%emt 0:00:07]} 8. h3 {[%emt 0:01:14]} Bxf3 {[%emt 0:00:05]} 9. Bxf3 {[%emt 0:00:20]} Nd7 {[%emt 0:00:08]} 10. e3 {[%emt 0:02:45]} e5 {[%emt 0:00:09]} 11. d5 {[%emt 0:00:29]} Ne7 {[%emt 0:01:35]} 12. Bg2 {[%emt 0:00:56]} f5 {[%emt 0:00:43]} 13. f4 {[%emt 0:00:21]} e4 {[%emt 0:00:26]} 14. Nb5 {[%emt 0:01:09]} Nc5 {[%emt 0:05:59]} 15. Nd4 {[%emt 0:00:27]} a5 {[%emt 0:01:40]} 16. Rb1 {[%emt 0:00:42]} Qd7 {[%emt 0:01:18]} 17. b3 {[%emt 0:00:25]} c6 {[%emt 0:02:50]} 18. dxc6 {[%emt 0:01:35]} bxc6 {[%emt 0:01:18]} 19. Bb2 {[%emt 0:00:28]} Nd3 {[%emt 0:00:19]} 20. Ba1 {[%emt 0:00:21]} Rfb8 {[%emt 0:02:29]} 21. Bf3 {[%emt 0:00:24]} Nb4 {[%emt 0:02:42]} 22. Be2 {[%emt 0:00:49]} Nxa2 {[%emt 0:00:05]} 23. Qd2 {[%emt 0:00:39]} Nb4 {[%emt 0:00:05]} 24. Rfd1 {[%emt 0:00:24]} d5 {[%emt 0:00:51]} 25. Nc2 {[%emt 0:01:16]} Qe6 {[%emt 0:01:04]} 26. Bxg7 {[%emt 0:00:39]} Kxg7 {[%emt 0:00:06]} 27. Nxb4 {[%emt 0:00:39]} Rxb4 {[%emt 0:00:10]} 28. cxd5 {[%emt 0:02:00]} cxd5 {[%emt 0:00:29]} 29. Rdc1 {[%emt 0:00:30]} Qb6 {[%emt 0:00:42]} 30. Qc3+ {[%emt 0:00:50]} Kf7 {[%emt 0:00:19]} 31. Qc5 {[%emt 0:01:03]} Qxc5 {[%emt 0:00:07]} 32. Rxc5 {[%emt 0:00:16]} a4 {[%emt 0:00:03]} 33. Rb5 {[%emt 0:00:49]} Rb8 {[%emt 0:00:12]} 34. Rxb8 {[%emt 0:00:20]} Rxb8 {[%emt 0:00:05]} 35. Bd1 {[%emt 0:00:05]} axb3 {[%emt 0:00:10]} 36. Rxb3 {[%emt 0:00:33]} Rxb3 {[%emt 0:00:04]} 37. Bc2 {[%emt 0:00:06]} Rxe3 {[%emt 0:00:06]} 0-1

[Event "African Online-ch O50-Seniors 2021"]
[Site "Online"]
[Date "2021.02.01"]
[Round "7.2"]
[White "Ohlson, Cecil"]
[Black "Flora, Francisco Jose Estev"]
[Result "1-0"]
[ECO "B20"]
[WhiteElo "1652"]
[BlackElo "1808"]
[Annotator "NA RC"]
[PlyCount "47"]
[EventDate "2021.02.01"]
[EventType "swiss"]
[EventCountry "NET"]
[SourceTitle "playchess.com"]
[Source "ChessBase"]
[SourceQuality "1"]
[TimeControl "1500+10"]

1. e4 {[%emt 0:00:00]} c5 {[%emt 0:00:19]} 2. d3 {[%emt 0:00:04]} d6 {[%emt 0:00:24]} 3. f4 {[%emt 0:00:02]} Nc6 {[%emt 0:00:21]} 4. Be2 {[%emt 0:00:04]} Nf6 $11 {[%emt 0:00:25]} 5. Nf3 {[%emt 0:00:04]} g6 {[%emt 0:00:22]} 6. O-O {[%emt 0:00:02]} Bg7 {[%emt 0:00:14]} 7. Qe1 {[%emt 0:00:03]} O-O {[%emt 0:00:24]} 8. Qh4 {[%emt 0:00:02]} Qc7 {[%emt 0:00:32]} 9. f5 {[%emt 0:01:27]} Nd4 {[%emt 0:00:26]} 10. Bd1 {[%emt 0:00:10]} Nxf3+ {[%emt 0:00:35]} 11. Rxf3 {[%emt 0:02:12]} Bd7 {[%emt 0:00:50]} 12. Bh6 {[%emt 0:00:19]} Qb6 {[%emt 0:00:56]} 13. Nd2 {[%emt 0:00:57]} Bc6 {[%emt 0:04:13]} 14. Nc4 {[%emt 0:00:29]} Qc7 {[%emt 0:00:22]} 15. Rh3 {[%emt 0:02:34]} b5 {[%emt 0:01:37]} 16. Ne3 {[%emt 0:00:04]} c4 {[%emt 0:02:13]} 17. Bxg7 {[%emt 0:01:26]} Kxg7 {[%emt 0:00:14]} 18. Qh6+ {[%emt 0:00:10]} Kg8 {[%emt 0:00:24]} 19. Ng4 {[%emt 0:01:08]} Qb6+ {[%emt 0:00:39]} 20. Kh1 {[%emt 0:00:27]} Nh5 {[%emt 0:00:10]} 21. Rxh5 {[%emt 0:00:44]} gxh5 {[%emt 0:00:57]} 22. f6 {[%emt 0:00:10]} exf6 {[%emt 0:00:23]} 23. Nxf6+ {[%emt 0:00:05]} Kh8 {[%emt 0:00:09]} 24. Qxh7# {[%emt 0:00:03]} 1-0

[Event "African Online-ch O50-Seniors 2021"]
[Site "Online"]
[Date "2021.02.01"]
[Round "7.4"]
[White "Mukabi, John"]
[Black "Molapo, Joang"]
[Result "1-0"]
[ECO "B24"]
[WhiteElo "1820"]
[BlackElo "1607"]
[Annotator "NA RC"]
[PlyCount "93"]
[EventDate "2021.02.01"]
[EventType "swiss"]
[EventCountry "NET"]
[SourceTitle "playchess.com"]
[Source "ChessBase"]
[SourceQuality "1"]
[TimeControl "1500+10"]

1. e4 {[%emt 0:00:00]} c5 {[%emt 0:00:06]} 2. Nc3 {[%emt 0:00:07]} d6 {[%emt 0:00:06]} 3. f4 {[%emt 0:00:06]} Nf6 {[%emt 0:00:06]} 4. Nf3 {[%emt 0:00:12]} Nc6 {[%emt 0:00:05]} 5. g3 {[%emt 0:00:18]} e6 {[%emt 0:00:15]} 6. Bg2 {[%emt 0:00:07]} Be7 {[%emt 0:00:05]} 7. d3 {[%emt 0:00:06]} O-O {[%emt 0:00:08] 7...0-0 is better than 7...a6.} 8. O-O {[%emt 0:00:06]} a6 {[%emt 0:00:10]} 9. a4 {[%emt 0:00:18]} Qc7 {[%emt 0:00:07]} 10. Ne2 {[%emt 0:00:22]} Rd8 {[%emt 0:00:15]} 11. h3 {[%emt 0:00:18]} Rb8 {[%emt 0:01:15]} 12. g4 {[%emt 0:01:26]} b5 {[%emt 0:00:25]} 13. axb5 {[%emt 0:00:09]} axb5 {[%emt 0:00:12] [#]} 14. Bd2 $146 {[%emt 0:00:11]} ({Predecessor:} 14. f5 Nd7 15. g5 Nde5 16. Nxe5 Nxe5 17. f6 Bf8 18. fxg7 Bxg7 19. Nf4 Ng6 20. Nh5 {1-0 (41) Kulesza,M (2253)-Beil,M (2176) Frydek Mistek 2004}) 14... b4 {[%emt 0:00:56]} 15. Ng3 {[%emt 0:00:42]} Qb6 {[%emt 0:06:17]} 16. Kh1 {[%emt 0:00:25]} Nd4 {[%emt 0:01:24]} 17. g5 {[%emt 0:00:37]} Nd7 {[%emt 0:00:05]} 18. Nh2 {[%emt 0:10:37]} b3 {[%emt 0:01:32]} 19. c3 {[%emt 0:00:52]} Nc2 {[%emt 0:00:41]} 20. Rb1 {[%emt 0:00:07]} Ba6 {[%emt 0:00:13]} 21. Rf3 {[%emt 0:00:43]} ({White should try} 21. c4 $14) 21... Bb7 {[%emt 0:01:08]} 22. Ng4 {[%emt 0:01:05]} d5 {[%emt 0:00:18]} 23. Qe2 {[%emt 0:00:23]} dxe4 {[%emt 0:00:12]} 24. dxe4 {[%emt 0:00:12]} Ba6 {[%emt 0:00:25]} 25. Qf2 {[%emt 0:00:24]} c4 {[%emt 0:00:41]} 26. Ne3 {[%emt 0:00:20]} Bc5 {[%emt 0:00:16]} 27. Ngf1 {[%emt 0:00:24]} Nf8 {[%emt 0:00:14]} 28. Qe2 {[%emt 0:01:03]} Ng6 {[%emt 0:00:39]} 29. Rc1 {[%emt 0:00:08]} Nh4 {[%emt 0:04:15]} 30. Rg3 {[%emt 0:00:50]} Rxd2 {[%emt 0:04:03]} 31. Qxd2 {[%emt 0:00:08]} Rd8 {[%emt 0:00:12]} 32. Qe2 {[%emt 0:00:16] [#]} Rd3 {[%emt 0:00:07]} (32... Ng6 $1 $17 {[%cal Rg6f4]} 33. Nxc2 bxc2) 33. Nxc2 {[%emt 0:00:18] Remove Defender} bxc2 {[%emt 0:00:20]} 34. Qxc2 {[%emt 0:00:16]} Rxg3 {[%emt 0:00:21]} 35. Nxg3 {[%emt 0:00:08]} Nxg2 {[%emt 0:00:23]} 36. Kxg2 {[%emt 0:00:09]} Be3 {[%emt 0:00:45]} 37. Rf1 {[%emt 0:00:07]} Bb7 {[%emt 0:00:11]} 38. Kh2 {[%emt 0:01:16]} g6 $18 {[%emt 0:00:18]} 39. Rf3 {[%emt 0:00:40]} Bg1+ {[%emt 0:00:19]} 40. Kg2 {[%emt 0:00:04]} Bc5 {[%emt 0:00:08]} 41. Qd2 {[%emt 0:00:16]} Qa5 {[%emt 0:00:18]} 42. Rf1 {[%emt 0:00:17]} Kg7 {[%emt 0:00:33]} 43. Kh2 {[%emt 0:00:26]} Qb6 {[%emt 0:00:06]} 44. Rd1 {[%emt 0:00:26]} Bc6 {[%emt 0:00:53]} 45. h4 {[%emt 0:00:07]} Be3 {[%emt 0:00:49]} 46. Qd8 {[%emt 0:00:11]} Qxb2+ {[%emt 0:00:09]} 47. Kh3 {[%emt 0:00:29]} 1-0

[Event "African Online-ch O50-Seniors 2021"]
[Site "Online"]
[Date "2021.02.01"]
[Round "8.4"]
[White "Flora, Francisco Jose Estev"]
[Black "Kpodo, Evans Mawuko"]
[Result "1-0"]
[ECO "B33"]
[WhiteElo "1808"]
[BlackElo "1654"]
[Annotator "NA RC"]
[PlyCount "85"]
[EventDate "2021.02.01"]
[EventType "swiss"]
[EventCountry "NET"]
[SourceTitle "playchess.com"]
[Source "ChessBase"]
[SourceQuality "1"]
[TimeControl "1500+10"]

1. e4 {[%emt 0:00:00]} c5 {[%emt 0:00:30]} 2. Nf3 {[%emt 0:00:20]} Nc6 {[%emt 0:00:10]} 3. d4 {[%emt 0:00:24]} cxd4 {[%emt 0:00:05]} 4. Nxd4 {[%emt 0:00:18]} Nf6 {[%emt 0:00:07]} 5. Nc3 {[%emt 0:00:14]} e5 {[%emt 0:00:24]} 6. Ndb5 {[%emt 0:00:32]} d6 {[%emt 0:00:05]} 7. Nd5 {[%emt 0:00:30]} Nxd5 {[%emt 0:00:05]} 8. exd5 {[%emt 0:00:22]} Ne7 {[%emt 0:01:03]} 9. c4 {[%emt 0:00:23]} Ng6 {[%emt 0:00:11]} 10. Be2 {[%emt 0:01:19]} a6 {[%emt 0:00:09]} 11. Nc3 {[%emt 0:00:15]} Be7 {[%emt 0:00:06]} 12. O-O {[%emt 0:00:26]} O-O {[%emt 0:00:06]} 13. Be3 {[%emt 0:00:51]} Bd7 {[%emt 0:00:14]} 14. Qd2 {[%emt 0:02:46]} f5 {[%emt 0:01:00]} 15. f3 {[%emt 0:01:20]} f4 {[%emt 0:00:22]} 16. Bf2 {[%emt 0:00:23]} Bh4 {[%emt 0:00:06]} 17. Bd3 {[%emt 0:00:51]} Bf5 {[%emt 0:00:28]} 18. Ne4 {[%emt 0:00:37]} Bxf2+ {[%emt 0:00:26]} 19. Qxf2 {[%emt 0:00:24]} Rc8 {[%emt 0:00:51]} 20. Rac1 {[%emt 0:00:37]} Bxe4 {[%emt 0:00:56]} 21. Bxe4 {[%emt 0:00:30]} Rf6 {[%emt 0:00:40]} 22. b4 {[%emt 0:00:37]} b6 {[%emt 0:01:42]} 23. Rc2 {[%emt 0:01:30]} Ne7 {[%emt 0:06:22]} 24. Rfc1 {[%emt 0:00:33]} Nf5 {[%emt 0:00:27]} 25. Bxf5 {[%emt 0:00:30]} Rxf5 {[%emt 0:00:07]} 26. a4 {[%emt 0:00:58]} Rf7 {[%emt 0:01:37]} 27. Qd2 {[%emt 0:01:09]} Rfc7 {[%emt 0:01:56]} 28. Qd3 {[%emt 0:00:42]} Qd7 {[%emt 0:00:48]} 29. a5 {[%emt 0:02:47]} bxa5 {[%emt 0:00:36]} 30. bxa5 {[%emt 0:00:20]} Rc5 {[%emt 0:00:12]} 31. Rb2 {[%emt 0:01:50]} Qc7 {[%emt 0:00:14]} 32. Rb6 {[%emt 0:01:19]} Rxa5 {[%emt 0:00:23]} 33. Rc6 {[%emt 0:00:33]} Qa7+ {[%emt 0:00:06]} 34. Kh1 {[%emt 0:00:51]} Qd7 {[%emt 0:01:04]} 35. Rb6 {[%emt 0:01:02]} Qd8 {[%emt 0:01:29]} 36. Rb7 {[%emt 0:00:38]} Rac5 {[%emt 0:00:46]} 37. h3 {[%emt 0:00:20]} R5c7 {[%emt 0:01:17]} 38. Rcb1 {[%emt 0:00:36]} Rxc4 {[%emt 0:00:40]} 39. Qf5 {[%emt 0:00:19]} Rc1+ {[%emt 0:00:42]} 40. Rxc1 {[%emt 0:00:14]} Rxc1+ {[%emt 0:00:06]} 41. Kh2 {[%emt 0:00:06]} Rc7 {[%emt 0:00:18]} 42. Qe6+ {[%emt 0:00:11]} Kh8 {[%emt 0:00:08]} 43. Rxc7 {[%emt 0:00:21]} 1-0

[Event "African Online-ch O50-Seniors 2021"]
[Site "Online"]
[Date "2021.02.01"]
[Round "8.5"]
[White "Belabbas, Haddouche"]
[Black "Ohlson, Cecil"]
[Result "1-0"]
[ECO "D00"]
[WhiteElo "1776"]
[BlackElo "1652"]
[Annotator "NA RC"]
[PlyCount "103"]
[EventDate "2021.02.01"]
[EventType "swiss"]
[EventCountry "NET"]
[SourceTitle "playchess.com"]
[Source "ChessBase"]
[SourceQuality "1"]
[TimeControl "1500+10"]

1. d4 {[%emt 0:00:00]} d5 {[%emt 0:00:03]} 2. Bf4 {[%emt 0:00:08]} c5 {[%emt 0:00:03]} 3. e3 {[%emt 0:00:06]} Nc6 {[%emt 0:00:02]} 4. c3 {[%emt 0:00:03]} Nf6 {[%emt 0:00:03]} 5. Nd2 {[%emt 0:00:06]} Bf5 {[%emt 0:00:08]} 6. Qb3 {[%emt 0:00:39]} Qb6 {[%emt 0:02:12]} 7. dxc5 {[%emt 0:00:09]} Qxb3 {[%emt 0:00:18]} 8. axb3 {[%emt 0:00:21]} e5 {[%emt 0:00:03]} 9. Bg3 {[%emt 0:00:06]} Bxc5 {[%emt 0:00:05]} 10. Ngf3 {[%emt 0:00:28]} Bd6 {[%emt 0:00:49]} 11. Bb5 {[%emt 0:00:49]} Nd7 {[%emt 0:00:03]} 12. Nd4 {[%emt 0:00:49]} Nxd4 {[%emt 0:01:18]} 13. exd4 {[%emt 0:01:51]} f6 {[%emt 0:00:15]} 14. Nf3 {[%emt 0:03:42]} O-O {[%emt 0:01:04]} 15. Bxd7 {[%emt 0:04:00]} Bxd7 {[%emt 0:00:07]} 16. dxe5 {[%emt 0:00:04]} Rfe8 {[%emt 0:00:37]} 17. O-O-O {[%emt 0:00:35]} Bxe5 {[%emt 0:03:54]} 18. Bxe5 {[%emt 0:00:22]} fxe5 {[%emt 0:00:08]} 19. Rxd5 {[%emt 0:00:04]} Bc6 {[%emt 0:00:09]} 20. Rxe5 {[%emt 0:04:34]} Rxe5 {[%emt 0:00:04]} 21. Nxe5 {[%emt 0:00:06]} Bxg2 {[%emt 0:00:03]} 22. Rg1 {[%emt 0:02:28]} Be4 {[%emt 0:00:05]} 23. Re1 {[%emt 0:00:38]} Bf5 {[%emt 0:00:11]} 24. Nf3 {[%emt 0:00:40]} Kf7 {[%emt 0:00:18]} 25. Nd4 {[%emt 0:00:18]} Bd7 {[%emt 0:01:19]} 26. Kd2 {[%emt 0:00:24]} Re8 {[%emt 0:00:09]} 27. Rxe8 {[%emt 0:00:05]} Bxe8 {[%emt 0:00:16]} 28. Ke3 {[%emt 0:00:02]} Kf6 {[%emt 0:00:07]} 29. f4 {[%emt 0:00:45]} g5 {[%emt 0:01:33]} 30. fxg5+ {[%emt 0:00:06]} Kxg5 {[%emt 0:00:03]} 31. Kf3 {[%emt 0:01:18]} Kh4 {[%emt 0:00:13]} 32. Kf2 {[%emt 0:00:49]} Bg6 {[%emt 0:00:46]} 33. b4 {[%emt 0:00:59]} Kh3 {[%emt 0:01:02]} 34. Kg1 {[%emt 0:00:03]} Bd3 {[%emt 0:00:26]} 35. Ne6 {[%emt 0:00:08]} Bf5 {[%emt 0:00:25]} 36. Nd4 {[%emt 0:00:25]} Bd3 {[%emt 0:00:05]} 37. Ne6 {[%emt 0:00:08]} Bf5 {[%emt 0:00:09]} 38. Nc5 {[%emt 0:00:05]} b5 {[%emt 0:00:34]} 39. Nb3 {[%emt 0:00:07]} h5 {[%emt 0:00:29]} 40. Nd4 {[%emt 0:00:04]} Bd7 {[%emt 0:03:36]} 41. b3 {[%emt 0:00:03]} Be8 {[%emt 0:01:13]} 42. c4 {[%emt 0:00:31]} a6 {[%emt 0:00:09]} 43. c5 {[%emt 0:00:11]} Bd7 {[%emt 0:00:17]} 44. c6 {[%emt 0:00:33]} Bc8 {[%emt 0:00:08]} 45. c7 {[%emt 0:00:10]} Kg4 {[%emt 0:00:03]} 46. Nc6 {[%emt 0:00:11]} Kf4 {[%emt 0:00:38]} 47. Na7 {[%emt 0:00:03]} Bb7 {[%emt 0:00:12]} 48. c8=Q {[%emt 0:00:04]} Bxc8 {[%emt 0:00:02]} 49. Nxc8 {[%emt 0:00:03]} Ke4 {[%emt 0:00:10]} 50. Ne7 {[%emt 0:00:53]} Kd3 {[%emt 0:00:09]} 51. Nd5 {[%emt 0:00:28]} Kc2 {[%emt 0:00:06]} 52. Nc7 {[%emt 0:00:04]} 1-0

[Event "African Online-ch O50-Seniors 2021"]
[Site "Online"]
[Date "2021.02.01"]
[Round "9.2"]
[White "Kpodo, Evans Mawuko"]
[Black "Belabbas, Haddouche"]
[Result "1-0"]
[ECO "B15"]
[WhiteElo "1654"]
[BlackElo "1776"]
[Annotator "NA RC"]
[PlyCount "65"]
[EventDate "2021.02.01"]
[EventType "swiss"]
[EventCountry "NET"]
[SourceTitle "playchess.com"]
[Source "ChessBase"]
[SourceQuality "1"]
[TimeControl "1500+10"]

1. e4 {[%emt 0:00:00]} c6 {[%emt 0:00:06]} 2. d4 {[%emt 0:00:48]} d5 {[%emt 0:00:05]} 3. Nc3 {[%emt 0:00:04]} dxe4 {[%emt 0:00:06]} 4. Nxe4 {[%emt 0:00:03]} Nf6 {[%emt 0:00:03]} 5. Bd3 {[%emt 0:00:15]} Qxd4 {[%emt 0:00:49]} 6. Nf3 {[%emt 0:00:23]} Qd8 {[%emt 0:00:24]} 7. Nxf6+ {[%emt 0:00:07]} gxf6 {[%emt 0:00:51]} 8. Bd2 {[%emt 0:00:15]} Bg4 {[%emt 0:00:28]} 9. h3 {[%emt 0:00:06]} Bh5 {[%emt 0:00:06]} 10. Qe2 {[%emt 0:00:07]} e6 {[%emt 0:00:21]} 11. O-O-O {[%emt 0:00:07]} Qc7 {[%emt 0:00:28]} 12. Kb1 {[%emt 0:00:06]} Nd7 {[%emt 0:00:11]} 13. g4 {[%emt 0:01:00]} Bg6 {[%emt 0:00:05]} 14. Nh4 {[%emt 0:00:04]} O-O-O {[%emt 0:01:58]} 15. f4 {[%emt 0:01:20]} Bxd3 {[%emt 0:00:06]} 16. Qxd3 {[%emt 0:00:11]} Bd6 {[%emt 0:03:06]} 17. Rhf1 {[%emt 0:01:17]} Nb6 {[%emt 0:02:04]} 18. Qb3 {[%emt 0:03:05]} Nd5 {[%emt 0:01:11]} 19. f5 {[%emt 0:00:19]} e5 {[%emt 0:00:42]} 20. Be3 {[%emt 0:01:02]} Nxe3 {[%emt 0:02:31]} 21. Qxe3 {[%emt 0:00:06]} Qb6 {[%emt 0:00:10]} 22. Qxb6 {[%emt 0:00:15]} axb6 {[%emt 0:00:03]} 23. Rd3 {[%emt 0:00:06]} e4 {[%emt 0:01:29]} 24. Re3 {[%emt 0:00:05]} Rde8 {[%emt 0:00:38]} 25. Rfe1 {[%emt 0:00:15]} Bg3 {[%emt 0:00:09]} 26. Rxg3 {[%emt 0:00:08]} Re5 {[%emt 0:00:11]} 27. c3 {[%emt 0:00:06]} Rhe8 {[%emt 0:00:08]} 28. Rge3 {[%emt 0:00:03]} c5 {[%emt 0:00:16]} 29. Ng2 {[%emt 0:00:07]} Kc7 {[%emt 0:00:12]} 30. Nf4 {[%emt 0:00:04]} Kc6 {[%emt 0:00:07]} 31. Nh5 {[%emt 0:00:13]} Rd8 {[%emt 0:00:22]} 32. Nxf6 {[%emt 0:00:07]} Rd2 {[%emt 0:00:03]} 33. Nxe4 {[%emt 0:00:16]} 1-0

[Event "African Online-ch O50-Seniors 2021"]
[Site "Online"]
[Date "2021.02.01"]
[Round "9.3"]
[White "Mukabi, John"]
[Black "Flora, Francisco Jose Estev"]
[Result "0-1"]
[ECO "A46"]
[WhiteElo "1820"]
[BlackElo "1808"]
[Annotator "NA RC"]
[PlyCount "114"]
[EventDate "2021.02.01"]
[EventType "swiss"]
[EventCountry "NET"]
[SourceTitle "playchess.com"]
[Source "ChessBase"]
[SourceQuality "1"]
[TimeControl "1500+10"]

1. d4 {[%emt 0:00:00]} c5 {[%emt 0:00:22]} 2. Nf3 {[%emt 0:00:20]} Nf6 {[%emt 0:00:20]} 3. Bf4 {[%emt 0:00:10]} cxd4 {[%emt 0:00:34]} 4. Nxd4 {[%emt 0:00:15]} e5 {[%emt 0:01:06]} 5. Qd2 {[%emt 0:08:40]} exd4 {[%emt 0:00:29]} 6. Qxd4 {[%emt 0:00:11]} Nc6 {[%emt 0:00:20]} 7. Qd1 {[%emt 0:00:21]} d5 {[%emt 0:00:30]} 8. e3 {[%emt 0:00:14]} Be6 {[%emt 0:01:00]} 9. a3 {[%emt 0:00:19]} h6 {[%emt 0:00:20]} 10. Nc3 {[%emt 0:00:08]} Bd6 {[%emt 0:00:17]} 11. Bxd6 {[%emt 0:02:03]} Qxd6 {[%emt 0:00:15]} 12. Bb5 {[%emt 0:00:15]} O-O {[%emt 0:00:23]} 13. h3 {[%emt 0:00:07]} a6 {[%emt 0:00:19]} 14. Be2 {[%emt 0:00:30]} d4 {[%emt 0:00:27]} 15. exd4 {[%emt 0:00:17]} Qxd4 {[%emt 0:00:15]} 16. O-O {[%emt 0:03:57]} Qxd1 {[%emt 0:00:15]} 17. Raxd1 {[%emt 0:00:07]} Rfd8 {[%emt 0:00:15]} 18. Bf3 {[%emt 0:01:10]} Rxd1 {[%emt 0:00:19]} 19. Rxd1 {[%emt 0:00:13]} Rd8 {[%emt 0:00:12]} 20. Rxd8+ {[%emt 0:01:51]} Nxd8 {[%emt 0:00:27]} 21. Kf1 {[%emt 0:00:37]} Bf5 {[%emt 0:00:36]} 22. Bd1 {[%emt 0:00:20]} Nc6 {[%emt 0:00:36]} 23. Ke1 {[%emt 0:00:52]} Kf8 {[%emt 0:00:28]} 24. f3 {[%emt 0:00:17]} Ke7 {[%emt 0:00:23]} 25. Kd2 {[%emt 0:00:08]} Kd6 {[%emt 0:00:22]} 26. g4 {[%emt 0:00:18]} Be6 {[%emt 0:00:37]} 27. f4 {[%emt 0:00:11]} Bc4 {[%emt 0:00:24]} 28. b3 {[%emt 0:00:23]} Bf1 {[%emt 0:00:52]} 29. h4 {[%emt 0:00:06]} Bg2 {[%emt 0:00:34]} 30. Kd3 {[%emt 0:01:20]} Nd5 {[%emt 0:00:43]} 31. Na4 {[%emt 0:00:27]} b5 {[%emt 0:00:29]} 32. Nb2 {[%emt 0:00:27]} Nxf4+ {[%emt 0:00:23]} 33. Ke3 {[%emt 0:00:06]} Ng6 {[%emt 0:00:19]} 34. h5 {[%emt 0:00:10]} Nge5 {[%emt 0:00:32]} 35. Be2 {[%emt 0:00:11]} f6 {[%emt 0:00:40]} 36. a4 {[%emt 0:00:38]} Kc5 {[%emt 0:00:54]} 37. axb5 {[%emt 0:00:10]} axb5 {[%emt 0:00:11]} 38. c3 {[%emt 0:00:22]} Bd5 {[%emt 0:00:59]} 39. b4+ {[%emt 0:00:08]} Kb6 {[%emt 0:00:18]} 40. Kf4 {[%emt 0:00:12]} Be6 {[%emt 0:01:21]} 41. Nd1 {[%emt 0:00:26]} Ne7 {[%emt 0:00:25]} 42. Kg3 {[%emt 0:00:38]} Bc4 {[%emt 0:00:51]} 43. Bxc4 {[%emt 0:00:18]} Nxc4 {[%emt 0:00:15]} 44. Kf4 {[%emt 0:00:08]} Kc6 {[%emt 0:00:29]} 45. Ke4 {[%emt 0:00:13]} Kd6 {[%emt 0:00:47]} 46. Nf2 {[%emt 0:00:28]} Ne5 {[%emt 0:00:49]} 47. Kd4 {[%emt 0:00:20]} N5c6+ {[%emt 0:01:14]} 48. Ke4 {[%emt 0:00:11]} Nd5 {[%emt 0:01:21]} 49. Kd3 {[%emt 0:00:53]} Ne5+ {[%emt 0:00:28]} 50. Kd4 {[%emt 0:00:08]} Nc6+ $2 {[%emt 0:00:44]} (50... Kc6 $19 51. Ne4 Nxg4) 51. Kd3 {[%emt 0:00:07]} Ke5 {[%emt 0:00:18]} 52. Ne4 {[%emt 0:00:07]} Nf4+ {[%emt 0:00:54]} 53. Ke3 {[%emt 0:00:11]} Ne7 {[%emt 0:00:18]} 54. Nc5 {[%emt 0:00:14]} Ned5+ {[%emt 0:00:12]} 55. Kd2 {[%emt 0:00:06]} Ne6 {[%emt 0:00:22]} 56. Nd7+ {[%emt 0:01:06]} Kf4 {[%emt 0:00:21]} 57. Nb8 {[%emt 0:00:13]} Kxg4 $19 {[%emt 0:00:15]} 0-1

[Event "African Online-ch O50-Seniors 2021"]
[Site "Online"]
[Date "2021.02.01"]
[Round "9.5"]
[White "Fernandes, Luis De Pina"]
[Black "Molapo, Joang"]
[Result "0-1"]
[ECO "C02"]
[WhiteElo "1601"]
[BlackElo "1607"]
[Annotator "NA RC"]
[PlyCount "98"]
[EventDate "2021.02.01"]
[EventType "swiss"]
[EventCountry "NET"]
[SourceTitle "playchess.com"]
[Source "ChessBase"]
[SourceQuality "1"]
[TimeControl "1500+10"]

1. e4 {[%emt 0:00:00]} e6 {[%emt 0:00:05]} 2. d4 {[%emt 0:00:14]} d5 {[%emt 0:00:05]} 3. e5 {[%emt 0:00:32]} c5 {[%emt 0:00:07]} 4. c3 {[%emt 0:00:02]} Qb6 {[%emt 0:00:06]} 5. Nf3 {[%emt 0:00:08]} Nc6 {[%emt 0:00:07]} 6. a4 {[%emt 0:03:30]} c4 {[%emt 0:00:36]} 7. Be2 {[%emt 0:00:48]} h6 {[%emt 0:00:11]} 8. O-O {[%emt 0:00:08]} Bd7 {[%emt 0:00:08]} 9. Nbd2 {[%emt 0:00:06]} Na5 {[%emt 0:00:15]} 10. Rb1 {[%emt 0:00:49]} Nb3 {[%emt 0:00:30]} 11. Nxb3 {[%emt 0:00:26]} Bxa4 {[%emt 0:00:25]} 12. Nfd2 {[%emt 0:00:35]} Bxb3 {[%emt 0:00:22]} 13. Nxb3 {[%emt 0:00:04]} cxb3 {[%emt 0:00:08]} 14. c4 {[%emt 0:00:09]} O-O-O {[%emt 0:00:25]} 15. c5 {[%emt 0:00:12]} Qb4 {[%emt 0:01:16]} 16. Ra1 {[%emt 0:04:08]} Ne7 {[%emt 0:01:02]} 17. Ra3 {[%emt 0:00:24]} Nc6 {[%emt 0:00:14]} 18. Be3 {[%emt 0:00:31]} a6 {[%emt 0:02:41]} 19. Rxb3 {[%emt 0:00:09]} Qa4 {[%emt 0:00:04]} 20. Ra3 {[%emt 0:00:06]} Qxd1 {[%emt 0:00:05]} 21. Rxd1 {[%emt 0:00:05]} f6 {[%emt 0:00:09]} 22. f4 {[%emt 0:00:24]} Be7 {[%emt 0:00:48]} 23. Rb1 {[%emt 0:00:39]} g5 {[%emt 0:00:14]} 24. g3 {[%emt 0:00:17]} Rhg8 {[%emt 0:00:11]} 25. Kf2 {[%emt 0:01:05]} gxf4 {[%emt 0:00:39]} 26. gxf4 {[%emt 0:00:04]} fxe5 {[%emt 0:00:05]} 27. fxe5 {[%emt 0:00:06]} Bh4+ {[%emt 0:00:06]} 28. Kf1 {[%emt 0:02:30]} Rdf8+ {[%emt 0:00:06]} 29. Bf4 {[%emt 0:00:11]} Rxf4+ {[%emt 0:00:05]} 30. Rf3 {[%emt 0:00:06]} Rxf3+ {[%emt 0:00:07]} 31. Bxf3 {[%emt 0:00:04]} Rf8 {[%emt 0:00:15]} 32. Kg2 {[%emt 0:00:08]} Nxd4 {[%emt 0:00:05]} 33. Bh5 {[%emt 0:00:13]} Rf2+ {[%emt 0:00:29]} 34. Kh3 {[%emt 0:00:06]} Nf5 {[%emt 0:00:08]} 35. Bg4 {[%emt 0:00:19]} Bg5 {[%emt 0:00:07]} 36. Bxf5 {[%emt 0:00:11]} Rxf5 {[%emt 0:00:09]} 37. b4 {[%emt 0:00:23]} Rxe5 {[%emt 0:00:08]} 38. Rf1 {[%emt 0:00:16]} Rf5 {[%emt 0:00:09]} 39. Rb1 {[%emt 0:00:09]} Kc7 {[%emt 0:00:08]} 40. b5 {[%emt 0:00:04]} axb5 {[%emt 0:00:06]} 41. Rxb5 {[%emt 0:00:03]} Rf3+ {[%emt 0:00:16]} 42. Kg4 {[%emt 0:00:05]} Rc3 {[%emt 0:00:08]} 43. Rb6 {[%emt 0:00:09]} Rxc5 {[%emt 0:00:23]} 44. Rxe6 {[%emt 0:00:04]} b5 {[%emt 0:00:10]} 45. h4 {[%emt 0:00:04]} Rc4+ {[%emt 0:00:04]} 46. Kf5 {[%emt 0:00:15]} Rxh4 {[%emt 0:00:12]} 47. Ke5 {[%emt 0:00:02]} Re4+ {[%emt 0:00:05]} 48. Kxd5 {[%emt 0:00:06]} Rxe6 {[%emt 0:00:03]} 49. Kxe6 {[%emt 0:00:02]} b4 {[%emt 0:00:13]} 0-1